Cogmind - Beta 16 @@@ ROGUE MODE // 2026.01.11 @ 05:31:13 Player: Yellow Fin Result: Self-destructed Performance ------------- Evolutions (7) 3500 Regions Visited (21) 4200 Robots Destroyed (264) 1320 Value Destroyed (5875) 5875 Prototype IDs (29) 580 Alien Tech Used (0) 0 Bonus (1166) 1166 TOTAL SCORE: 16641 Bonus ------- Follower Combat Kills 402 Registered with UFD 300 Met Optimus in HQ 500 Friendly Fire -36 Cogmind --------- Core Integrity 1176/1300 Matter 35/300 Energy 89/100 System Corruption 10% Temperature Cool (0) Movement Flying (27) Location -3/Testing Parts ------- > --- POWER (1) -------- Improved Fusion Compressor > --- PROPULSION (5) --- Cooled VTOL Module Cooled VTOL Module Cooled Nuclear Pulse Thruster Cooled Field Propulsion Drive > --- UTILITY (13) ----- Medium Storage Unit Advanced Visual Processing Unit Long-range Sensor Array Advanced Signal Interpreter Experimental Terrain Scanner Advanced Terrain Scan Processor Advanced Hacking Suite Advanced Hacking Suite System Shield Improved System Shield Improved System Shield > --- WEAPON (2) ------- Scythe > --- INVENTORY (10) --- Cooled VTOL Module Advanced Cryofiber Web Energy Well (350) Advanced Matter Compressor (51) Advanced ECM Suite Advanced Reaction Control System Authchip [Propulsion] Authchip [Device] Mini Drone Bay (3/3) Peak State ------------ > --- POWER ------------ Improved Fusion Compressor > --- PROPULSION ------- Cooled VTOL Module Cooled VTOL Module Cooled VTOL Module Cooled Nuclear Pulse Thruster Advanced Surge Thruster > --- UTILITY ---------- Medium Storage Unit Gravity Neutralizer Advanced Visual Processing Unit Long-range Sensor Array Advanced Signal Interpreter Experimental Terrain Scanner Advanced Terrain Scan Processor Experimental Thermal Shield Advanced Hacking Suite Advanced Hacking Suite System Shield Improved System Shield Improved System Shield > --- WEAPON ----------- Mini Smartbomb Launcher Scythe > --- INVENTORY -------- Q-thruster Advanced Cryofiber Web Energy Well Advanced Matter Compressor Powered Armor Authchip [Propulsion] Authchip [Propulsion] Authchip [Device] Mini Drone Bay Mini Drone Bay [Rating: 120] Favorites ----------- Power Deuterium Engine Engine Deuterium Engine Power Core Light Nuclear Core Propulsion Wheel Wheel Wheel Flight Unit Cooled VTOL Module Utility Targeting Computer Device Experimental Terrain Scanner Storage Huge Storage Unit Processor Targeting Computer Hackware Hacking Suite Protection Hardened Light Armor Plating Weapon Flak Gun Energy Gun Beam Rifle Energy Cannon Heavy Particle Cannon Ballistic Gun Flak Gun Ballistic Cannon Light Cannon Launcher Mini Grenade Launcher Special Weapon Mining Laser Slashing Weapon Scythe Build | -11 -10 -10 -9 -9 -8 -7 -7 -7 -7 -5 -5 -5 -5 -5 -4 -4 -4 -4 -4 -3 -3 ------- Run | Yrd Mat Min Mat Min Mat Fac Sto Rec Scr Fac Was Fac Upp Upp Fac Was Fac Upp Upp Res Tes Slots Evolved 14 | . . . 2 . 2 2 . . . 4 . . . . 2 . . . . 2 . Power . | . . . . . . . . . . . . . . . . . . . . . . Propulsion 3 | . . . . . . . . . . 3 . . . . . . . . . . . Utility 11 | . . . 2 . 2 2 . . . 1 . . . . 2 . . . . 2 . Weapon . | . . . . . . . . . . . . . . . . . . . . . . Parts Attached 216 | 12 25 . 36 3 24 10 19 9 1 29 . 10 . 3 8 2 7 . . 15 3 Power 21 | 1 4 . 5 . 2 1 1 2 . 1 . 2 . . 1 1 . . . . . Engine 14 | 1 4 . 5 . 2 . 1 1 . . . . . . . . . . . . . Core 7 | . . . . . . 1 . 1 . 1 . 2 . . 1 1 . . . . . Reactor . | . . . . . . . . . . . . . . . . . . . . . . Propulsion 57 | 6 5 . 10 2 5 1 9 1 1 6 . 2 . . 2 . 1 . . 4 2 Treads . | . . . . . . . . . . . . . . . . . . . . . . Leg . | . . . . . . . . . . . . . . . . . . . . . . Wheel 36 | 6 5 . 9 2 4 1 7 1 1 . . . . . . . . . . . . Hover . | . . . . . . . . . . . . . . . . . . . . . . Flight 21 | . . . 1 . 1 . 2 . . 6 . 2 . . 2 . 1 . . 4 2 Utility 97 | 2 5 . 6 1 13 7 4 6 . 22 . 6 . 3 4 1 6 . . 10 1 Device 25 | 1 . . . . 2 . 1 2 . 8 . 1 . . 2 1 3 . . 4 . Storage 9 | 1 2 . . 1 1 . . . . 2 . 1 . . . . . . . 1 . Processor 13 | . 1 . 2 . 4 2 . . . 3 . . . . . . . . . 1 . Hackware 30 | . . . . . . 3 . 3 . 7 . 4 . 3 2 . 3 . . 4 1 Protection 20 | . 2 . 4 . 6 2 3 1 . 2 . . . . . . . . . . . Artifact . | . . . . . . . . . . . . . . . . . . . . . . Weapon 41 | 3 11 . 15 . 4 1 5 . . . . . . . 1 . . . . 1 . Energy Gun 7 | 1 3 . 3 . . . . . . . . . . . . . . . . . . Energy Cannon 4 | . 3 . 1 . . . . . . . . . . . . . . . . . . Ballistic Gun 19 | 2 3 . 7 . 4 . 3 . . . . . . . . . . . . . . Ballistic Cannon 5 | . . . 4 . . . 1 . . . . . . . . . . . . . . Launcher 3 | . 1 . . . . . . . . . . . . . 1 . . . . 1 . Special Weapon 1 | . 1 . . . . . . . . . . . . . . . . . . . . Impact Weapon . | . . . . . . . . . . . . . . . . . . . . . . Slashing Weapon 2 | . . . . . . 1 1 . . . . . . . . . . . . . . Piercing Weapon . | . . . . . . . . . . . . . . . . . . . . . . Special Melee Weapon . | . . . . . . . . . . . . . . . . . . . . . . Unidentified Prototypes 13 | . . . 3 . 1 1 2 . . . . . . . . 1 . . . 4 1 Corrupted Parts 4 | . . . . . . . . . . 2 . . . 2 . . . . . . . System Corruption 5 | . . . . . . . . . . 3 . . . 2 . . . . . . . Parts Lost 31 | . 6 . 6 . 2 2 1 1 . 3 . . . . 2 . . . . 4 4 Power . | . . . . . . . . . . . . . . . . . . . . . . Propulsion 14 | . 3 . 4 . 1 1 . 1 . 1 . . . . 1 . . . . 1 1 Utility 12 | . 1 . 1 . 1 1 . . . 2 . . . . 1 . . . . 3 2 Weapon 5 | . 2 . 1 . . . 1 . . . . . . . . . . . . . 1 Highest Loss Streak 4 | . 4 . 2 . 1 1 1 1 . 3 . . . . 1 . . . . 4 4 To Critical Strikes . | . . . . . . . . . . . . . . . . . . . . . . Average Backups 18 | 4 17 25 23 24 24 24 24 20 23 8 9 8 9 9 9 9 9 10 10 8 9 Power . | 1 . . . . . 1 1 . . . . . . . . 1 . . . . . Propulsion 4 | 1 6 7 6 7 6 6 6 5 5 . . . . . . . . . . . 1 Utility 11 | . 8 15 10 10 13 13 13 12 15 8 9 8 9 9 8 8 8 10 10 7 8 Weapon 2 | 1 2 3 5 6 3 3 3 2 2 . . . . . . . . . . . . Tool/Special . | . . . . . . . . . . . . . . . . . . . . . . Unused Backups 82 | 3 6 1 16 2 20 3 3 . 4 9 . 2 . . 3 1 . . . 2 7 Power 5 | 2 1 . . . 1 1 . . . . . . . . . . . . . . . Propulsion 20 | . 4 . 5 2 7 . 1 . . . . . . . 1 . . . . . . Utility 44 | 1 . 1 7 . 6 2 2 . 3 8 . 2 . . 2 1 . . . 2 7 Weapon 11 | . 1 . 4 . 5 . . . 1 . . . . . . . . . . . . Tool/Special 2 | . . . . . 1 . . . . 1 . . . . . . . . . . . Average Slot Usage (%) 99 | . 98 100 99 100 99 99 99 99 100 98 100 99 100 100 97 99 99 100 100 93 97 Engine 5 | . 14 14 11 11 9 . 1 4 . . . . . . . . . . . . . Core 2 | . . . . . . 6 5 2 7 5 5 5 5 5 5 5 5 5 5 3 4 Wheel 13 | . 27 28 21 22 18 14 15 14 15 . . . . . . . . . . . . Flight 7 | . . . . . . . . . . 28 29 28 29 29 26 26 26 26 26 22 22 Device 5 | . . . . . 4 6 . 2 7 10 17 12 11 10 11 9 9 4 5 14 14 Storage 7 | . 14 14 11 11 9 7 7 7 7 4 5 5 5 5 5 5 5 5 5 4 4 Processor 15 | . 5 . 21 22 29 19 23 17 7 10 11 11 11 11 10 10 10 10 10 10 14 Hackware 14 | . . . . . . 14 15 22 38 23 17 21 23 23 27 31 31 36 36 25 23 Protection 6 | . 7 14 11 11 11 11 15 9 . . . . . . . . . . . . 1 Energy Gun 1 | . 9 14 1 . . . . . . . . . . . . . . . . . . Energy Cannon 1 | . 4 . 6 . . . . . . . . . . . . . . . . . . Ballistic Gun 9 | . 12 14 9 22 18 14 11 15 15 . . . . . . . . . . . . Launcher 1 | . . . . . . . . . . 4 5 5 5 5 4 5 5 5 5 3 3 Slashing Weapon 1 | . . . . . . . . . . 4 5 5 5 5 5 5 4 5 5 4 4 Peak Build Rating 120 | 8 13 12 20 20 34 45 48 44 45 78 76 79 79 81 92 91 97 97 98 120 120 Average Rating 45 | 6 10 12 16 20 27 43 44 42 42 66 76 75 78 79 85 90 93 96 97 107 114 On Entrance 56 | . 8 12 12 20 20 34 43 43 41 45 76 76 75 79 76 91 90 97 97 94 115 Avg Prop Armor Cover (%) 7 | . . . . . . . . . . . . 7 . . . . . . . . . Naked Turns . | . . . . . . . . . . . . . . . . . . . . . . Heaviest Build 112 | 12 102 95 103 100 112 111 112 112 94 94 23 23 23 22 43 22 25 30 30 36 36 Greatest Support 49 | 32 20 20 26 20 20 20 26 20 20 31 29 33 33 33 33 23 34 30 34 48 49 Greatest Overweight (x) 11 | . 9 4 10 4 5 5 11 10 4 4 . 1 . . 1 . . . . . . Average Overweight (x) 1 | . 2 4 4 4 5 4 5 4 4 . . . . . . . . . . . . Largest Inventory Capacity 25 | 8 25 25 25 25 25 25 25 25 25 25 10 10 10 10 10 10 10 10 10 10 10 Average Capacity 20 | 7 20 25 25 25 25 25 25 25 25 10 10 10 10 10 10 10 10 10 10 10 10 Most Carried 25 | 8 25 25 25 25 25 25 25 24 25 25 10 10 10 10 10 10 10 10 10 10 10 Average Carried 18 | 4 17 24 23 24 24 24 24 20 23 8 10 9 10 10 9 9 9 9 10 8 9 Final Capacity 25 | 8 25 25 25 25 25 25 25 25 25 10 10 10 10 10 10 10 10 10 10 10 10 Final Carried 25 | 8 25 25 25 24 25 24 23 21 25 10 10 10 10 10 10 9 10 10 10 10 9 Class Distribution -------------------- 40% | Mutant 21% | Hacker-Mutant 18% | Hacker-Scout 7% | Scavenger-Mutant 5% | Wizard-Scout Dominant Class ---------------- Mutant | -10/Materials Mutant | -10/Mines Mutant | -9/Materials Mutant | -9/Mines Mutant | -8/Materials Hacker-Mutant | -7/Factory Hacker-Mutant | -7/Storage Scavenger-Mutant | -7/Recycling Hacker-Mutant | -7/Scraptown Hacker-Scout | -5/Factory Hacker-Scout | -5/Waste Hacker-Scout | -5/Factory Hacker-Scout | -5/Upper Caves Hacker-Scout | -5/Upper Caves Hacker-Scout | -4/Factory Hacker-Scout | -4/Waste Hacker-Scout | -4/Factory Wizard-Sprinter | -4/Upper Caves Wizard-Sprinter | -4/Upper Caves Wizard-Scout | -3/Research Wizard-Scout | -3/Testing Resources | -11 -10 -10 -9 -9 -8 -7 -7 -7 -7 -5 -5 -5 -5 -5 -4 -4 -4 -4 -4 -3 -3 ----------- Run | Yrd Mat Min Mat Min Mat Fac Sto Rec Scr Fac Was Fac Upp Upp Fac Was Fac Upp Upp Res Tes Matter Collected 9267 | 353 495 122 1106 107 1130 453 1068 240 . 676 . 162 43 10 478 30 139 241 . 2229 185 Remotely . | . . . . . . . . . . . . . . . . . . . . . . Salvage Created 9218 | 245 801 110 1914 72 1458 399 1045 341 . 473 . 196 . . 344 . 48 70 . 1656 46 Parts 532 | 21 82 6 122 9 89 26 48 11 . 25 . 8 . . 13 . 2 5 . 62 3 Haulers Intercepted 17 | . 2 . 6 . 6 . 3 . . . . . . . . . . . . . . Recyclers Shooed 15 | . 1 2 3 . 3 . . . . . . . . . . . . . . 6 . Parts Field Recycled . | . . . . . . . . . . . . . . . . . . . . . . Retrieved Matter . | . . . . . . . . . . . . . . . . . . . . . . Parts Self-Destructed 8 | . . . . . . . . . . . . . . 3 . . . 5 . . . Prevented . | . . . . . . . . . . . . . . . . . . . . . . Parts Restored . | . . . . . . . . . . . . . . . . . . . . . . Kills | -11 -10 -10 -9 -9 -8 -7 -7 -7 -7 -5 -5 -5 -5 -5 -4 -4 -4 -4 -4 -3 -3 ------- Run | Yrd Mat Min Mat Min Mat Fac Sto Rec Scr Fac Was Fac Upp Upp Fac Was Fac Upp Upp Res Tes Combat Hostiles Destroyed 133 | . 21 3 29 4 24 9 16 4 . 9 . . . . 6 . . 4 . 3 1 Melee 2 | . . . . . . . . . . . . . . . . . . . . 1 1 Guns 81 | . 16 3 8 4 24 9 13 4 . . . . . . . . . . . . . Cannons 26 | . 5 . 18 . . . 3 . . . . . . . . . . . . . . AOE 24 | . . . 3 . . . . . . 9 . . . . 6 . . 4 . 2 . Classes Destroyed 16 | 3 7 . 2 . 2 1 . . . . . . . . . . . . . 1 . Worker 28 | 2 2 . 4 1 5 . 3 . . 1 . 1 . . 1 . . . . 8 . Builder 14 | . 3 . 3 . 2 1 2 1 . . . . . . . . . . . 1 1 Tunneler 12 | 5 1 . 4 1 . . . . . . . . . . . . . . . 1 . Hauler 17 | . 2 . 6 . 6 . 3 . . . . . . . . . . . . . . Recycler 31 | 1 1 1 4 . 2 1 3 2 . 3 . 1 . . 2 . . . . 10 . Mechanic 1 | . . . . . . . . . . . . . . . . . . . . 1 . Operator 8 | . 1 . 2 . 2 2 . . . 1 . . . . . . . . . . . Watcher 19 | . 3 . 4 . 5 1 1 . . 1 . 1 . . 1 . 1 . . 1 . Swarmer 54 | . 14 3 7 4 4 2 . . . 9 . . . . 4 . . 4 . 3 . Grunt 42 | . 4 . 12 . 11 4 10 1 . . . . . . . . . . . . . Duelist 1 | . . . 1 . . . . . . . . . . . . . . . . . . Sentry 24 | . . . 9 . 7 1 5 2 . . . . . . . . . . . . . Hunter 4 | . . . . . 2 . . 1 . . . . . . . . . . . . 1 Programmer 5 | . . . . . . 2 1 . . . . . . . 2 . . . . . . Subdweller 3 | . 3 . . . . . . . . . . . . . . . . . . . . Zionite 1 | . . . . . 1 . . . . . . . . . . . . . . . . Best Kill Streak 7 | 4 5 3 7 4 4 2 4 2 . 5 . 1 . . 4 . 1 4 . 6 1 Combat Bots Only 5 | . 4 3 4 4 4 2 4 2 . 5 . . . . 4 . . 4 . 3 1 Max Kills in Single Turn 5 | 1 1 1 5 1 3 1 2 1 . 3 . 1 . . 3 . 1 3 . 2 1 Gunslinging 1 | . . . . . 1 . . . . . . . . . . . . . . . . Exploded 3 | . . . 3 . . . . . . 2 . . . . 3 . . 3 . 2 . Melee 1 | . . . . . . . . . . . . . . . . . . . . 1 1 Uniques/NPCs Destroyed . | . . . . . . . . . . . . . . . . . . . . . . Combat | -11 -10 -10 -9 -9 -8 -7 -7 -7 -7 -5 -5 -5 -5 -5 -4 -4 -4 -4 -4 -3 -3 -------- Run | Yrd Mat Min Mat Min Mat Fac Sto Rec Scr Fac Was Fac Upp Upp Fac Was Fac Upp Upp Res Tes Hostile Shots Fired 753 | . 113 12 119 32 91 57 111 75 . 29 . 4 4 . 16 . 9 2 4 11 64 Missed 224 | . 25 3 21 11 29 19 28 26 . 15 . 3 2 . 6 . 6 . 3 5 22 Hits 529 | . 88 9 98 21 62 38 83 49 . 14 . 1 2 . 10 . 3 2 1 6 42 Projectile 529 | . 88 9 98 21 62 38 83 49 . 14 . 1 2 . 10 . 3 2 1 6 42 Critical Strikes 22 | . 3 . 7 . 7 1 . 1 . . . 1 . . . . . . . . 2 Damage Taken 7451 | . 1094 68 1267 167 886 488 850 385 . 598 . 103 33 . 239 . 70 31 15 471 686 Core 901 | . 173 21 207 18 119 31 55 38 . 87 . 28 . . . . . . . 25 99 Absorbed by Shields 52 | . . . . . 52 . . . . . . . . . . . . . . . . Regen/Repaired (Parts) 435 | . . . . . 82 . . . . . . 118 . . . 27 88 . . 120 . Core Remaining (%) 73 | 100 . 22 . 43 78 . . . 82 . . . . 88 . . . . 100 . . Volleys Fired 474 | 14 100 10 140 10 71 28 54 12 . 13 . 2 . . 9 . . 2 . 3 6 Largest 2 | 2 2 2 2 2 2 2 2 2 . 1 . 1 . . 1 . . 1 . 1 1 Hottest 110 | 60 110 76 98 46 56 56 65 56 . 30 . 30 . . 49 . . 30 . 80 80 Shots Fired 850 | 25 163 20 261 20 142 55 106 24 . 13 . 2 . . 9 . . 2 . 3 5 Gun 624 | 25 135 20 122 20 142 55 81 24 . . . . . . . . . . . . . Cannon 188 | . 25 . 138 . . . 25 . . . . . . . . . . . . . . Launcher 35 | . . . 1 . . . . . . 13 . 2 . . 9 . . 2 . 3 5 Special 3 | . 3 . . . . . . . . . . . . . . . . . . . . Kinetic 614 | 11 78 10 168 20 142 55 106 24 . . . . . . . . . . . . . Thermal 201 | 14 85 10 92 . . . . . . . . . . . . . . . . . . Explosive 35 | . . . 1 . . . . . . 13 . 2 . . 9 . . 2 . 3 5 Electromagnetic . | . . . . . . . . . . . . . . . . . . . . . . Robot Hit Streak 55 | 8 14 4 25 5 29 24 52 55 . 2 . . . . 4 . . . . . . Robot Miss Streak 9 | 4 4 3 4 2 7 4 9 2 . 1 . . . . . . . . . . . Penetration Max . | . . . . . . . . . . . . . . . . . . . . . . Secondary Targets 4 | . . . 1 1 2 . . . . . . . . . . . . . . . . Max Gunslinging Chain 1 | . . . 1 1 1 . . . . . . . . . . . . . . . . Shots Hit Robots 685 | 15 109 10 181 13 123 48 91 19 . 6 . 4 . . 15 . 2 . . 40 9 Core Hits 621 | 9 41 6 71 6 191 63 127 33 . 24 . 3 . . 13 . 1 4 . 24 5 Critical Kills 1 | . 1 . . . . . . . . . . . . . . . . . . . . Critical Parts Destroyed 1 | . 1 . . . . . . . . . . . . . . . . . . . . Critical Strikes 6 | . 2 1 1 . . . . . . . . . . . . . . . . 2 . Burn 1 | . . 1 . . . . . . . . . . . . . . . . . . . Meltdown 1 | . 1 . . . . . . . . . . . . . . . . . . . . Destroy 1 | . 1 . . . . . . . . . . . . . . . . . . . . Blast 1 | . . . 1 . . . . . . . . . . . . . . . . . . Sever 2 | . . . . . . . . . . . . . . . . . . . . 2 . Melee Attacks 279 | . . . . . . 1 3 . . 62 . 30 . . 37 . 29 . . 101 16 Impact . | . . . . . . . . . . . . . . . . . . . . . . Slashing 279 | . . . . . . 1 3 . . 62 . 30 . . 37 . 29 . . 101 16 Piercing . | . . . . . . . . . . . . . . . . . . . . . . Sneak Attacks 37 | . . . . . . . . . . 4 . 2 . . 5 . . . . 24 2 Combat Hostiles . | . . . . . . . . . . . . . . . . . . . . . . Follow-up Attacks . | . . . . . . . . . . . . . . . . . . . . . . Damage Inflicted 19256 | 180 1725 132 3740 222 2566 1153 2142 555 . 1113 . 231 . . 1516 . 82 278 . 2741 880 Guns 9069 | 180 1321 132 1184 222 2566 1153 1756 555 . . . . . . . . . . . . . Cannons 3061 | . 404 . 2271 . . . 386 . . . . . . . . . . . . . . Explosions 3071 | . . . 285 . . . . . . 817 . . . . 831 . . 278 . 374 486 Melee 4055 | . . . . . . . . . . 296 . 231 . . 685 . 82 . . 2367 394 Ramming . | . . . . . . . . . . . . . . . . . . . . . . Kinetic 9178 | 60 779 75 1626 222 2566 1153 2142 555 . . . . . . . . . . . . . Thermal 2952 | 120 946 57 1829 . . . . . . . . . . . . . . . . . . Explosive 3071 | . . . 285 . . . . . . 817 . . . . 831 . . 278 . 374 486 Electromagnetic . | . . . . . . . . . . . . . . . . . . . . . . Impact . | . . . . . . . . . . . . . . . . . . . . . . Slashing 4055 | . . . . . . . . . . 296 . 231 . . 685 . 82 . . 2367 394 Piercing . | . . . . . . . . . . . . . . . . . . . . . . Highest Corruption 10 | . . . 3 3 . 1 1 1 . 9 7 . . 2 . . 2 2 2 10 10 Average Corruption 3 | . . . 2 3 . 1 1 1 . 2 3 . . 1 . . 2 2 2 10 10 Corruption Purged 12 | . . . . . . . . 1 . 4 7 . . . . . . . . . . Corruption Blocked . | . . . . . . . . . . . . . . . . . . . . . . Effects 86 | . . . 18 11 . 2 8 . . 10 3 . . . . . 1 2 . 23 8 Message Errors 20 | . . . . 5 . 1 . . . 5 1 . . . . . 1 . . 5 2 Matter Fused 23 | . . . 4 1 . 1 6 . . 2 1 . . . . . . . . 5 3 Heat Flow Errors 13 | . . . 6 . . . . . . 1 . . . . . . . 1 . 5 . Energy Discharges 12 | . . . 2 3 . . 1 . . 2 . . . . . . . . . 2 2 Parts Rejected 1 | . . . . . . . 1 . . . . . . . . . . . . . . Parts Fused 1 | . . . . . . . . . . . . . . . . . . . . 1 . Data Loss (minor) 9 | . . . 3 2 . . . . . . 1 . . . . . . . . 3 . Misfires 3 | . . . 3 . . . . . . . . . . . . . . . . . . Alerts 2 | . . . . . . . . . . . . . . . . . . 1 . 1 . Misdirections 1 | . . . . . . . . . . . . . . . . . . . . 1 . Weapon Failures 1 | . . . . . . . . . . . . . . . . . . . . . 1 Overload Shots . | . . . . . . . . . . . . . . . . . . . . . . Overflow Damage 868 | . . . 58 . . . . . . 139 . . . . 73 . . . . 497 101 Projectiles 37 | . . . 37 . . . . . . . . . . . . . . . . . . Explosions 195 | . . . 21 . . . . . . 71 . . . . 55 . . . . 48 . Melee 636 | . . . . . . . . . . 68 . . . . 18 . . . . 449 101 Knockbacks 13 | . . . 4 . . . 9 . . . . . . . . . . . . . . Impact . | . . . . . . . . . . . . . . . . . . . . . . Kinetic 12 | . . . 4 . . . 8 . . . . . . . . . . . . . . Secondary 1 | . . . . . . . 1 . . . . . . . . . . . . . . Self-Inflicted Damage 88 | . . . . . . . . . . 40 . . . . 48 . . . . . . Shots 4 | . . . . . . . . . . 3 . . . . 1 . . . . . . Rammed . | . . . . . . . . . . . . . . . . . . . . . . Targets Rammed . | . . . . . . . . . . . . . . . . . . . . . . Kicked . | . . . . . . . . . . . . . . . . . . . . . . Crushed . | . . . . . . . . . . . . . . . . . . . . . . Highest Temperature 560 | 20 560 180 366 . 124 57 22 12 . 146 4 131 90 105 142 . 243 129 59 337 172 Average Temperature 71 | 20 106 84 92 . 34 18 9 7 . 54 4 75 51 55 51 . 115 44 26 43 41 Received Heat Transfer 2100 | . 564 . 498 . 429 147 312 96 . 9 . . 12 . . . . . . 9 24 Effects 16 | . 13 . 3 . . . . . . . . . . . . . . . . . . Shutdowns 2 | . 2 . . . . . . . . . . . . . . . . . . . . Energy Bleed 6 | . 5 . 1 . . . . . . . . . . . . . . . . . . Interference 3 | . 1 . 2 . . . . . . . . . . . . . . . . . . Damage (major) 5 | . 5 . . . . . . . . . . . . . . . . . . . . Siege Activations . | . . . . . . . . . . . . . . . . . . . . . . Martial Activations . | . . . . . . . . . . . . . . . . . . . . . . Shielding Activations . | . . . . . . . . . . . . . . . . . . . . . . Robots Disrupted . | . . . . . . . . . . . . . . . . . . . . . . Combat Hostiles . | . . . . . . . . . . . . . . . . . . . . . . Robots Corrupted . | . . . . . . . . . . . . . . . . . . . . . . Combat Hostiles . | . . . . . . . . . . . . . . . . . . . . . . Parts Fried . | . . . . . . . . . . . . . . . . . . . . . . Impact Corruptions . | . . . . . . . . . . . . . . . . . . . . . . Robots Melted 1 | . 1 . . . . . . . . . . . . . . . . . . . . Combat Hostiles . | . . . . . . . . . . . . . . . . . . . . . . Parts Melted 7 | . 5 . 2 . . . . . . . . . . . . . . . . . . Heat Transferred 5349 | 275 2040 222 2812 . . . . . . . . . . . . . . . . . . Parts Sabotaged . | . . . . . . . . . . . . . . . . . . . . . . Parts Stolen . | . . . . . . . . . . . . . . . . . . . . . . Parts Stripped . | . . . . . . . . . . . . . . . . . . . . . . Power Chain Reactions . | . . . . . . . . . . . . . . . . . . . . . . Alert | -11 -10 -10 -9 -9 -8 -7 -7 -7 -7 -5 -5 -5 -5 -5 -4 -4 -4 -4 -4 -3 -3 ------- Run | Yrd Mat Min Mat Min Mat Fac Sto Rec Scr Fac Was Fac Upp Upp Fac Was Fac Upp Upp Res Tes Maximum Alert Level 2 | . . . 1 . . . 1 . . 2 . . . . 1 . 1 . . . . Low Security (%) 89 | 100 100 100 74 100 100 100 86 100 . 93 100 100 . . 34 100 51 . . 100 100 Level 1 10 | . . . 25 . . . 13 . . 6 . . . . 65 . 48 . . . . Level 2 . | . . . . . . . . . . . . . . . . . . . . . . Level 3 . | . . . . . . . . . . . . . . . . . . . . . . Level 4 . | . . . . . . . . . . . . . . . . . . . . . . Level 5 . | . . . . . . . . . . . . . . . . . . . . . . High Security . | . . . . . . . . . . . . . . . . . . . . . . Max Security . | . . . . . . . . . . . . . . . . . . . . . . Peak Influence 410 | 10 151 99 347 130 198 113 233 84 . 410 141 58 . . 304 138 323 . . 169 142 Initial 141 | . 3 24 5 130 1 88 7 78 . . 141 56 . . . 81 75 . . 67 92 Average 85 | 2 59 59 142 53 72 43 107 21 . 115 115 10 . . 178 103 195 . . 32 87 Influence Increases 6832 | 40 552 90 1001 100 862 337 518 240 . 791 . 142 15 . 481 127 793 90 . 533 120 Destroy 0b10 Robot/C 2940 | . 360 60 580 80 540 180 320 80 . 180 . . . . 120 . 280 80 . 60 20 Destroy 0b10 Robot/NC 660 | 40 65 5 130 10 115 25 60 15 . 25 . 15 . . 20 . 20 . . 110 5 Destroy Leader 762 | . 80 10 180 10 172 52 108 . . 22 . 2 . . 22 . 72 10 . 12 10 Allied During Kill 68 | . . . . . 4 . . . . . . . . . . . 64 . . . . Successful Hack 332 | . 6 . 28 . 16 20 . 25 . 66 . 12 . . 67 . 38 . . 46 8 Select Force Hacks 120 | . . . . . . . . 120 . . . . . . . . . . . . . Disable Machine 195 | . 15 . 15 . 15 15 30 . . 60 . . . . 15 . 15 . . . 15 Destroy Structure 900 | . 11 . 23 . . . . . . 228 . 68 . . 132 112 124 . . 140 62 Partial Spotted 345 | . . . . . . 15 . . . 15 . 15 . . 60 15 150 . . 75 . Lose Combat Pursuer 510 | . 15 15 45 . . 30 . . . 195 . 30 15 . 45 . 30 . . 90 . Influence Decreases 6740 | 35 494 139 679 430 672 516 335 440 . 387 323 205 33 . 248 252 691 138 62 468 193 Entered New Map 1198 | . 2 39 9 206 5 108 10 122 . . 263 25 8 . . 152 33 78 32 33 73 Time Decay 4788 | 35 453 100 615 224 617 389 315 318 . 357 60 180 25 . 208 70 278 60 30 374 80 Lost Part 273 | . 39 . 55 . 20 19 10 . . 30 . . . . 20 . . . . 40 40 Lost Ally 331 | . . . . . 30 . . . . . . . . . 20 30 230 . . 21 . Purge Threat 150 | . . . . . . . . . . . . . . . . . 150 . . . . Squads Dispatched 59 | . 2 . 3 . 3 3 3 . . 8 . 7 . . 11 . 8 . . 10 1 Investigation 31 | . 1 . 3 . . . . . . 6 . 3 . . 8 . 5 . . 4 1 Extermination 15 | . . . . . . 2 1 . . 2 . 1 . . 3 . 2 . . 4 . Reinforcement 13 | . 1 . . . 3 1 2 . . . . 3 . . . . 1 . . 2 . Assault . | . . . . . . . . . . . . . . . . . . . . . . Garrison . | . . . . . . . . . . . . . . . . . . . . . . Intercept . | . . . . . . . . . . . . . . . . . . . . . . Searches Triggered . | . . . . . . . . . . . . . . . . . . . . . . Unchained Authorized 1 | . . . . . . . . . . . . . . . . . . . . 1 . Construction Impeded 1 | . . . . . . . . . . . . . . . . . 1 . . . . Haulers Reinforced 2 | . . . . . . . 2 . . . . . . . . . . . . . . Active Scanning Responses . | . . . . . . . . . . . . . . . . . . . . . . Cargo Convoy Interrupts . | . . . . . . . . . . . . . . . . . . . . . . Stealth | -11 -10 -10 -9 -9 -8 -7 -7 -7 -7 -5 -5 -5 -5 -5 -4 -4 -4 -4 -4 -3 -3 --------- Run | Yrd Mat Min Mat Min Mat Fac Sto Rec Scr Fac Was Fac Upp Upp Fac Was Fac Upp Upp Res Tes Distress Signals 14 | . 1 . 3 . 1 . 2 . . 2 . . . . 1 . 2 . . . 2 Communications Jammed . | . . . . . . . . . . . . . . . . . . . . . . Distress Signals . | . . . . . . . . . . . . . . . . . . . . . . Times Spotted 271 | . 31 4 38 4 39 16 17 4 . 24 5 12 1 . 20 5 15 4 4 20 8 Peak Tracking Total 10 | . 4 3 5 4 4 4 4 2 . 10 6 5 1 . 7 4 7 4 4 5 6 Tactical Retreats 26 | . 1 1 3 . . 2 . . . 7 . 1 1 . 3 . 2 . . 5 . Traps | -11 -10 -10 -9 -9 -8 -7 -7 -7 -7 -5 -5 -5 -5 -5 -4 -4 -4 -4 -4 -3 -3 ------- Run | Yrd Mat Min Mat Min Mat Fac Sto Rec Scr Fac Was Fac Upp Upp Fac Was Fac Upp Upp Res Tes Traps Triggered 14 | . 1 . 2 . . 4 . . . 2 . 1 . . 2 . 1 . . 1 . Indirectly . | . . . . . . . . . . . . . . . . . . . . . . Trap Hack Attempts . | . . . . . . . . . . . . . . . . . . . . . . Triggered . | . . . . . . . . . . . . . . . . . . . . . . Disarmed . | . . . . . . . . . . . . . . . . . . . . . . Reprogrammed 1 | . . . . . . . . . . . . . . . . . . . . 1 . Reused . | . . . . . . . . . . . . . . . . . . . . . . Traps Extracted . | . . . . . . . . . . . . . . . . . . . . . . Installed . | . . . . . . . . . . . . . . . . . . . . . . Triggered . | . . . . . . . . . . . . . . . . . . . . . . Machines | -11 -10 -10 -9 -9 -8 -7 -7 -7 -7 -5 -5 -5 -5 -5 -4 -4 -4 -4 -4 -3 -3 ---------- Run | Yrd Mat Min Mat Min Mat Fac Sto Rec Scr Fac Was Fac Upp Upp Fac Was Fac Upp Upp Res Tes Machines Disabled 13 | . 1 . 1 . 1 1 2 . . 4 . . . . 1 . 1 . . . 1 Max in Single Turn 1 | . 1 . 1 . . 1 1 . . 1 . . . . 1 . . . . . 1 Garrison Access 5 | . . . . . . . . . . . . 1 . . 1 . 1 . . 1 1 Machines Repaired . | . . . . . . . . . . . . . . . . . . . . . . Machines Dismantled . | . . . . . . . . . . . . . . . . . . . . . . Machines Sabotaged . | . . . . . . . . . . . . . . . . . . . . . . Overloaded Fab Kills . | . . . . . . . . . . . . . . . . . . . . . . Hacking | -11 -10 -10 -9 -9 -8 -7 -7 -7 -7 -5 -5 -5 -5 -5 -4 -4 -4 -4 -4 -3 -3 --------- Run | Yrd Mat Min Mat Min Mat Fac Sto Rec Scr Fac Was Fac Upp Upp Fac Was Fac Upp Upp Res Tes Machines Accessed 110 | . 1 . 7 . 4 4 2 7 6 16 . 11 1 1 16 . 13 . . 18 3 Terminals 51 | . 1 . 6 . 2 1 1 3 . 10 . 4 . . 6 . 7 . . 9 1 Fabricators 12 | . . . . . . . . . . 2 . 3 . . 3 . 2 . . 1 1 Repair Stations 10 | . . . . . 1 1 1 . . . . 2 . . . . 2 . . 3 . Recycling Units 17 | . . . . . . . . 4 . 4 . . . . 5 . 1 . . 3 . Scanalyzers 7 | . . . 1 . 1 2 . . . . . 1 . . 1 . . . . 1 . Garrison Access 5 | . . . . . . . . . . . . 1 . . 1 . 1 . . 1 1 Total Hacks 382 | . 1 . 14 . 11 11 4 12 41 47 . 38 1 1 44 . 48 . . 95 14 Successful 237 | . 1 . 6 . 8 4 2 7 41 31 . 25 1 1 29 . 28 . . 46 7 Failed 143 | . . . 8 . 3 7 2 4 . 16 . 13 . . 14 . 20 . . 49 7 Catastrophic 33 | . . . 2 . . 1 . 2 . 2 . 1 . . 3 . 6 . . 14 2 Database Lockouts 2 | . . . . . . . . 1 . . . . . . 1 . . . . . . Manual 165 | . 1 . 10 . 4 4 2 12 . 22 . 12 . . 21 . 21 . . 49 7 Terminals 207 | . 1 . 11 . 6 4 1 7 . 34 . 13 . . 25 . 35 . . 65 5 Fabricators 60 | . . . . . . . . . . 9 . 15 . . 11 . 7 . . 10 8 Repair Stations 29 | . . . . . 2 3 3 . . . . 6 . . . . 4 . . 11 . Recycling Units 18 | . . . . . . . . 5 . 4 . . . . 5 . 1 . . 3 . Scanalyzers 18 | . . . 3 . 3 4 . . . . . 2 . . 2 . . . . 4 . Garrison Access 7 | . . . . . . . . . . . . 2 . . 1 . 1 . . 2 1 Terminal Hacks 105 | . . . 2 . 2 1 1 1 41 14 . 2 1 1 9 . 12 . . 17 1 Record 42 | . . . . . . . . . 41 . . . . 1 . . . . . . . Part Schematic 9 | . . . . . . . . 1 . 4 . . . . 1 . 1 . . 2 . Prototype ID Bank 3 | . . . . . 1 . . . . . . . . . . . 1 . . 1 . Open Door 2 | . . . . . . . 1 . . . . . 1 . . . . . . . . Level Access Points 3 | . . . . . . . . . . 1 . . . . . . 1 . . 1 . Branch Access Points 6 | . . . 1 . . 1 . . . 1 . . . . 1 . 1 . . 1 . Emergency Access Points 1 | . . . . . . . . . . . . . . . . . 1 . . . . Machine Index 1 | . . . . . . . . . . . . . . . . . . . . 1 . Terminal Index 5 | . . . . . . . . . . 1 . 1 . . 1 . 1 . . 1 . Recycling Unit Index 1 | . . . . . . . . . . . . . . . 1 . . . . . . Garrison Index 1 | . . . . . . . . . . . . . . . . . . . . 1 . Alert Level 1 | . . . . . 1 . . . . . . . . . . . . . . . . Unreport Threat 1 | . . . . . . . . . . . . . . . . . 1 . . . . Locate Traps 14 | . . . 1 . . . . . . 5 . 1 . . 2 . 2 . . 2 1 Reprogram Traps 1 | . . . . . . . . . . . . . . . . . . . . 1 . Recall Extermination 6 | . . . . . . . . . . . . . . . 2 . 1 . . 3 . Recall Reinforcements 1 | . . . . . . . . . . . . . . . . . . . . 1 . Registered Components 3 | . . . . . . . . . . 1 . . . . 1 . . . . 1 . Registered Prototypes 2 | . . . . . . . . . . . . . . . . . 1 . . 1 . Zone Layout 2 | . . . . . . . . . . 1 . . . . . . 1 . . . . Fabricator Hacks 39 | . . . . . . . . . . 8 . 10 . . 4 . 5 . . 8 4 Network Status 6 | . . . . . . . . . . 1 . 1 . . 1 . 1 . . 1 1 Load Schematic 22 | . . . . . . . . . . 4 . 6 . . 3 . 3 . . 4 2 Build 11 | . . . . . . . . . . 3 . 3 . . . . 1 . . 3 1 Repair Station Hacks 19 | . . . . . 2 1 1 . . . . 4 . . . . 4 . . 7 . Scan Component 11 | . . . . . 1 1 1 . . . . 2 . . . . 2 . . 4 . Repair 8 | . . . . . 1 . . . . . . 2 . . . . 2 . . 3 . Recycling Unit Hacks . | . . . . . . . . . . . . . . . . . . . . . . Scanalyzer 10 | . . . 1 . 2 1 . . . . . 1 . . 2 . . . . 3 . Insert Component 2 | . . . . . . . . . . . . . . . . . . . . 2 . Analyze 1 | . . . . . . . . . . . . . . . . . . . . 1 . Retrieve Study 7 | . . . 1 . 2 1 . . . . . 1 . . 2 . . . . . . Garrison Access Hacks 5 | . . . . . . . . . . . . 1 . . 1 . 1 . . 1 1 Seal Access 5 | . . . . . . . . . . . . 1 . . 1 . 1 . . 1 1 Unauthorized Hacks 59 | . 1 . 3 . 2 1 . 6 . 9 . 7 . . 13 . 6 . . 10 1 Terminals 32 | . 1 . 3 . 2 1 . 2 . 4 . 4 . . 5 . 3 . . 6 1 Assimilate 14 | . 1 . 1 . . . . . . 2 . 2 . . 3 . 1 . . 4 . Botnet 18 | . . . 2 . 2 1 . 2 . 2 . 2 . . 2 . 2 . . 2 1 Fabricators 10 | . . . . . . . . . . 1 . 3 . . 3 . 2 . . 1 . Recompile 10 | . . . . . . . . . . 1 . 3 . . 3 . 2 . . 1 . Repair Stations . | . . . . . . . . . . . . . . . . . . . . . . Recycling Units 17 | . . . . . . . . 4 . 4 . . . . 5 . 1 . . 3 . Tunnel 4 | . . . . . . . . 4 . . . . . . . . . . . . . Fedlink 13 | . . . . . . . . . . 4 . . . . 5 . 1 . . 3 . Scanalyzers . | . . . . . . . . . . . . . . . . . . . . . . Garrison Access . | . . . . . . . . . . . . . . . . . . . . . . Data Cores Recovered 2 | . . . . . 1 1 . . . . . . . . . . . . . . . Used 1 | . . . . . . 1 . . . . . . . . . . . . . . . Hacking Detections 64 | . . . 4 . 4 4 2 3 . 9 . 9 . . 7 . 10 . . 10 2 Full Trace Events 6 | . . . 2 . . . . 1 . 1 . . . . . . 1 . . . 1 Feedback Events 1 | . . . 1 . . . . . . . . . . . . . . . . . . Corruption 1 | . . . 1 . . . . . . . . . . . . . . . . . . Feedback Blocked . | . . . . . . . . . . . . . . . . . . . . . . Robot Schematics Acquired . | . . . . . . . . . . . . . . . . . . . . . . Robots Built . | . . . . . . . . . . . . . . . . . . . . . . Authchips . | . . . . . . . . . . . . . . . . . . . . . . Time . | . . . . . . . . . . . . . . . . . . . . . . Total Robot Build Rating . | . . . . . . . . . . . . . . . . . . . . . . Part Schematics Acquired 10 | . . . . . . . . 1 . 4 . . . . 1 . 1 . . 3 . Parts Built 13 | . . . . . . . . . . 4 . 4 . . . . 1 . . 3 1 Authchips 10 | . . . . . . . . . . 2 . 3 . . . . 1 . . 3 1 Time 645 | . . . . . . . . . . 143 . 229 . . . . 67 . . 144 62 Total Part Build Rating 57 | . . . . . . . . . . 14 . 18 . . . . 4 . . 14 7 Part Studies Acquired 7 | . . . 1 . 2 1 . . . . . 1 . . 2 . . . . . . Parts Repaired 8 | . . . . . 1 . . . . . . 2 . . . . 2 . . 3 . Time 243 | . . . . . 44 . . . . . . 38 . . . . 63 . . 98 . Parts Recycled . | . . . . . . . . . . . . . . . . . . . . . . Recycled Matter . | . . . . . . . . . . . . . . . . . . . . . . Retrieved Matter . | . . . . . . . . . . . . . . . . . . . . . . Retrieved Components . | . . . . . . . . . . . . . . . . . . . . . . Parts Scanalyzed 1 | . . . . . . . . . . . . . . . . . . . . 1 . Part Schematics Acquired 1 | . . . . . . . . . . . . . . . . . . . . 1 . Parts Damaged 1 | . . . . . . . . . . . . . . . . . . . . 1 . Bothacking | -11 -10 -10 -9 -9 -8 -7 -7 -7 -7 -5 -5 -5 -5 -5 -4 -4 -4 -4 -4 -3 -3 ------------ Run | Yrd Mat Min Mat Min Mat Fac Sto Rec Scr Fac Was Fac Upp Upp Fac Was Fac Upp Upp Res Tes Used RIF Installer . | . . . . . . . . . . . . . . . . . . . . . . Robots Hacked . | . . . . . . . . . . . . . . . . . . . . . . Non-combat . | . . . . . . . . . . . . . . . . . . . . . . Combat . | . . . . . . . . . . . . . . . . . . . . . . Robot Hacks Applied . | . . . . . . . . . . . . . . . . . . . . . . Relay Couplers Released . | . . . . . . . . . . . . . . . . . . . . . . Fabnet Peak Effective % . | . . . . . . . . . . . . . . . . . . . . . . Robots Rewired . | . . . . . . . . . . . . . . . . . . . . . . Allies Hacked 1 | . . . . . . . . . . . . . . . . . . . . 1 . Hacks Repelled . | . . . . . . . . . . . . . . . . . . . . . . Allies | -11 -10 -10 -9 -9 -8 -7 -7 -7 -7 -5 -5 -5 -5 -5 -4 -4 -4 -4 -4 -3 -3 -------- Run | Yrd Mat Min Mat Min Mat Fac Sto Rec Scr Fac Was Fac Upp Upp Fac Was Fac Upp Upp Res Tes Total Allies 32 | . 1 . 1 2 . . . . . 1 . . . . 3 19 1 . . 4 . Largest Group 19 | . 1 1 1 3 3 . . . . 1 . . . . 2 19 14 . . 2 . Highest-Rated Group 684 | . 10 10 10 55 55 . . . . 26 . . . . 52 684 559 . . 20 . Highest-Rated Ally 50 | . 10 10 10 31 31 . . . . 26 . . . . 26 50 50 . . 10 . Total Orders 6 | . . . . . . . . . . . . . . . 2 2 . . . 2 . STAY 3 | . . . . . . . . . . . . . . . 1 1 . . . 1 . FOLLOW 3 | . . . . . . . . . . . . . . . 1 1 . . . 1 . Ally Attacks 229 | . . . . . 27 . . . . . . . . . . 110 92 . . . . Total Damage 8753 | . . . . . 269 . . . . . . . . . . 5304 3180 . . . . Kills 32 | . . . . . 4 . . . . . . . . . . 11 17 . . . . Allies Corrupted . | . . . . . . . . . . . . . . . . . . . . . . Allies Melted . | . . . . . . . . . . . . . . . . . . . . . . Intel | -11 -10 -10 -9 -9 -8 -7 -7 -7 -7 -5 -5 -5 -5 -5 -4 -4 -4 -4 -4 -3 -3 ------- Run | Yrd Mat Min Mat Min Mat Fac Sto Rec Scr Fac Was Fac Upp Upp Fac Was Fac Upp Upp Res Tes Active Infowar (turns) 7078 | 47 13 . . . . . . 408 1674 1026 121 600 246 211 600 148 586 116 69 1048 165 Optics 437 | . . . . . . . . . . . . . . . . . . . . 272 165 Sensors 6909 | . . . . . . . . 408 1674 981 121 600 246 211 572 148 586 116 33 1048 165 Terrain 4213 | . . . . . . . . . . 798 114 529 212 210 510 146 493 . 36 1000 165 Structural 394 | . . . . . . . . . . . . . . . . . . . . 394 . Seismic 60 | 47 13 . . . . . . . . . . . . . . . . . . . . Robot Analysis Total . | . . . . . . . . . . . . . . . . . . . . . . Derelict Logs Recovered 6 | . . . . 2 . . . . . . . . 2 2 . . . . . . . Drone Launches . | . . . . . . . . . . . . . . . . . . . . . . Drone Recoveries . | . . . . . . . . . . . . . . . . . . . . . . Exploration | -11 -10 -10 -9 -9 -8 -7 -7 -7 -7 -5 -5 -5 -5 -5 -4 -4 -4 -4 -4 -3 -3 ------------- Run | Yrd Mat Min Mat Min Mat Fac Sto Rec Scr Fac Was Fac Upp Upp Fac Was Fac Upp Upp Res Tes Turns Passed 16946 | 175 1446 204 2580 557 2248 1074 722 1238 1674 1061 121 600 246 213 620 148 611 123 71 1049 165 Spaces Moved 19046 | 116 812 123 1331 367 1221 628 308 831 1279 2271 155 1363 841 632 1723 255 1416 455 154 2426 339 Core 3 | 3 . . . . . . . . . . . . . . . . . . . . . Treads . | . . . . . . . . . . . . . . . . . . . . . . Legs . | . . . . . . . . . . . . . . . . . . . . . . Wheels 7019 | 113 812 123 1331 367 1221 628 308 831 1279 6 . . . . . . . . . . . Hover . | . . . . . . . . . . . . . . . . . . . . . . Flight 12024 | . . . . . . . . . . 2265 155 1363 841 632 1723 255 1416 455 154 2426 339 Fastest Speed 5 | 50 80 140 135 140 145 130 145 130 130 5 14 5 5 5 5 21 5 12 5 5 11 Average Speed 64 | 88 122 140 143 140 147 144 145 139 130 24 23 25 22 22 22 21 20 20 20 20 21 Slowest Speed 235 | 100 215 140 230 140 155 145 235 220 130 203 24 78 23 23 78 21 21 21 21 26 22 Overloaded Moves 327 | . . . . . . . . . . 71 3 17 7 9 67 . 59 8 9 71 6 Propulsion Burnouts . | . . . . . . . . . . . . . . . . . . . . . . Robots Hopped 38 | . . . . . . . . . . 18 . . 1 . 2 . 7 . . 10 . Potential Cave-ins 6 | . . . . . . . . . . 2 . 4 . . . . . . . . . Cave-ins Triggered 2 | . . . . . . . . . . 1 . . . . . . . . . 1 . Exploration Rate (%) 56 | 8 97 38 86 78 86 13 38 98 92 44 84 25 90 58 37 88 31 60 22 49 20 Regions Visited 21 Branch Regions 10 Pre-discovered Areas 7 | . . . . 1 . . . 4 . 1 . . . 1 . . . . . . . Known Exits Taken 13 | . . . 1 1 . 1 1 1 1 . . 1 1 1 . . 1 1 1 1 . Unknown Exits Taken 4 | 1 1 1 . . 1 . . . . . . . . . . . . . . . . Scrap Searched 14 | . . . . 3 . . . . 4 . . . 3 3 . . . 1 . . . Spaces Dug 226 | . . . . . . . . . . 78 . 49 . . 19 . 27 . . 52 1 Terrain Destroyed 505 | . 7 . 19 . . . . . . 126 . 49 . . 109 . 27 20 . 74 74 Melee 179 | . . . . . . . . . . 54 . 26 . . 19 . 27 . . 52 1 Projectile 19 | . 7 . 12 . . . . . . . . . . . . . . . . . . AOE 307 | . . . 7 . . . . . . 72 . 23 . . 90 . . 20 . 22 73 Terrain Rammed . | . . . . . . . . . . . . . . . . . . . . . . Walls Destroyed . | . . . . . . . . . . . . . . . . . . . . . . Machines Disabled . | . . . . . . . . . . . . . . . . . . . . . . Actions | -11 -10 -10 -9 -9 -8 -7 -7 -7 -7 -5 -5 -5 -5 -5 -4 -4 -4 -4 -4 -3 -3 --------- Run | Yrd Mat Min Mat Min Mat Fac Sto Rec Scr Fac Was Fac Upp Upp Fac Was Fac Upp Upp Res Tes Total 22340 | 162 1099 135 1757 392 1546 736 472 886 1292 2657 238 1573 892 698 1893 349 1684 480 191 2807 401 Wait 1761 | . 77 1 157 7 145 37 47 18 . 242 84 146 52 64 85 88 221 18 35 218 19 Move 18953 | 115 811 122 1330 366 1220 627 307 830 1278 2236 154 1362 838 631 1720 254 1401 454 153 2405 339 Hop 36 | . . . . . . . . . . 17 . . 1 . 1 . 7 . . 10 . Pick Up 270 | 14 47 1 46 1 41 13 13 8 8 19 . 8 . . 10 1 7 2 . 25 6 Fast Attach 35 | 6 2 . 2 . . 5 1 . . 6 . 3 . . 3 . 2 . . 5 . Attach 82 | 1 6 . 9 . 6 6 2 6 . 15 . 4 . . 6 1 2 . . 16 2 Detach 12 | . . . 1 . . . . . . 3 . 1 . . 3 . 1 . . 3 . Swap 195 | 5 24 . 29 4 21 11 25 4 1 18 . 10 1 3 9 2 9 2 3 8 6 Drop 243 | 7 32 1 43 4 42 8 20 8 5 26 . 7 . . 10 3 5 2 . 13 7 Fire 474 | 14 100 10 140 10 71 28 54 12 . 13 . 2 . . 9 . . 2 . 3 6 Melee 279 | . . . . . . 1 3 . . 62 . 30 . . 37 . 29 . . 101 16 Ram . | . . . . . . . . . . . . . . . . . . . . . . Kick . | . . . . . . . . . . . . . . . . . . . . . . Crush . | . . . . . . . . . . . . . . . . . . . . . . Escape Stasis . | . . . . . . . . . . . . . . . . . . . . . . Rewire . | . . . . . . . . . . . . . . . . . . . . . . Trap . | . . . . . . . . . . . . . . . . . . . . . . Miscellaneous . | . . . . . . . . . . . . . . . . . . . . . . Route ------- -11/Scrapyard -10/Materials (discovered 6 exits: *Mat x3 / [*Min x2] / [*Sub]) -10/Mines (discovered 2 exits: *Mat / [*Sub]) -9/Materials (discovered 5 exits: *Mat x3 / *Min x2) -9/Mines -8/Materials (discovered 2 exits: *Fac x2) -7/Factory (discovered 5 exits: *Fac / *Sto x2 / Low x2) -7/Storage -7/Recycling (discovered 2 exits: *Fac / *Scr) -7/Scraptown (discovered 2 exits: *Fac x2) -5/Factory (discovered 8 exits: *Fac x4 / *Upp x2 / *Ext x2) -5/Waste -5/Factory (discovered 2 exits: *Upp / Ext) -5/Upper Caves -5/Upper Caves -4/Factory (discovered 5 exits: *Res x2 / *Upp x2 / Arm) -4/Waste -4/Factory (discovered 7 exits: *Res x4 / *Upp x2 / Arm) -4/Upper Caves -4/Upper Caves -3/Research (discovered 5 exits: Res x3 / *Tes x2) -3/Testing History --------- Turn | Location | Event 32 | -11/Scrapyard | Discovered new exit (range 16) 176 | -11/Scrapyard | Entered Materials 338 | -10/Materials | Discovered new exit (range 7) 353 | -10/Materials | Build established: Mutant 457 | -10/Materials | Discovered new exit (range 13) 468 | -10/Materials | Discovered new exit (range 16) 624 | -10/Materials | Discovered new exit (range 15) 676 | -10/Materials | Derelicts attacked the area 841 | -10/Materials | Lost 4 parts (1n1u2w) 926 | -10/Materials | Discovered new exit (range 11) 1022 | -10/Materials | Core integrity fell below 50% 1134 | -10/Materials | Build established: Scavenger-Mutant 1336 | -10/Materials | Discovered new exit (range 8) 1475 | -10/Materials | Build established: Mutant 1622 | -10/Materials | Entered Mines 1622 | -10/Mines | Accompanied by 1 ally 1666 | -10/Mines | Discovered new exit (range 10) 1811 | -10/Mines | Discovered new exit (range 10) 1813 | -10/Mines | Assembled infested the area 1826 | -10/Mines | Entered Materials 1826 | -9/Materials | Accompanied by 1 ally 1826 | -9/Materials | Evolved 2 slots: Utility x2 2832 | -9/Materials | Discovered new exit (range 14) 2906 | -9/Materials | Discovered new exit (range 14) 3116 | -9/Materials | Discovered new exit (range 14) 3631 | -9/Materials | Identified exit to Mines 3736 | -9/Materials | Discovered new exit (range 16) 3969 | -9/Materials | Core integrity fell below 50% 4406 | -9/Materials | Entered Mines 4406 | -9/Mines | Accompanied by 1 ally 4455 | -9/Mines | Identified exit to Materials 4734 | -9/Mines | Received a Rocket Launcher from a helpful Derelict 4793 | -9/Mines | Learned location of Storage (-7) 4963 | -9/Mines | Entered Materials 4963 | -8/Materials | Accompanied by 3 allies 4963 | -8/Materials | Evolved 2 slots: Utility x2 4968 | -8/Materials | Led the pair of lost Derelicts to an unsafe place 6361 | -8/Materials | Discovered new exit (range 14) 7106 | -8/Materials | Discovered new exit (range 16) 7203 | -8/Materials | Repaired Flak Gun+ 7211 | -8/Materials | Entered Factory 7211 | -7/Factory | Evolved 2 slots: Utility x2 7521 | -7/Factory | Build established: Hacker-Mutant 7647 | -7/Factory | Discovered new exit (range 8) 7661 | -7/Factory | Identified exit to Factory 7787 | -7/Factory | Identified exit to Storage 7787 | -7/Factory | Identified exit to Lower Caves 8285 | -7/Factory | Entered Storage 8549 | -7/Storage | Used back door to open Recycling access 8549 | -7/Storage | Discovered new exit (range 5) 9006 | -7/Storage | Identified exit to Recycling 9007 | -7/Storage | Entered Recycling 9135 | -7/Recycling | Build established: Scavenger-Mutant 9441 | -7/Recycling | Discovered new exit (range 16) 9471 | -7/Recycling | Identified exit to Factory 9918 | -7/Recycling | Scanned before Scraplab entrance 9936 | -7/Recycling | Entered Scraplab 9947 | -7/Recycling | Discovered new exit (range 3) 9948 | -7/Recycling | Identified exit to Scraptown 10146 | -7/Recycling | Build established: Hacker-Mutant 10245 | -7/Recycling | Entered Scraptown 10322 | -7/Scraptown | Heard Great Nut preacher, LISTEN AND RECITE! 10543 | -7/Scraptown | Discovered exit to Factory (range 11) 10617 | -7/Scraptown | Visited Spacefarers 10687 | -7/Scraptown | Visited Cyclists 10905 | -7/Scraptown | Visited IN-MT5's Study 10957 | -7/Scraptown | Received an X-ray algorithm 10986 | -7/Scraptown | Visited The Evicted 11023 | -7/Scraptown | Visited Fellowship of the Rings 11052 | -7/Scraptown | Visited SPCMW 11090 | -7/Scraptown | Visited UFD Registry 11090 | -7/Scraptown | Registered with UFD as "Cogrigger" 11142 | -7/Scraptown | Entered Cyclist Reading Room 11218 | -7/Scraptown | Visited Research Penetration Think Tank 11247 | -7/Scraptown | Visited Infowarlord's Domain 11260 | -7/Scraptown | Found Exp. Terrain Scanner 11434 | -7/Scraptown | Visited Junk Cannon Lab 11443 | -7/Scraptown | Found Prototype Special Weapon 11467 | -7/Scraptown | Visited Scrapoid Pod Storage 11474 | -7/Scraptown | Found Scrapoid Pod 11496 | -7/Scraptown | Visited Derelict Rescue Squad 11506 | -7/Scraptown | Found DRS Beacon 11525 | -7/Scraptown | Visited Supply Room 11547 | -7/Scraptown | Visited Chapter 10 11583 | -7/Scraptown | Visited Scrap Suit Storage 11613 | -7/Scraptown | Visited A0-MCA Data Center 11621 | -7/Scraptown | Given a B+ rating by A0-MCA 11627 | -7/Scraptown | Found A0-MCA's Component Scanner 11704 | -7/Scraptown | Discovered exit to Factory (range 5) 11834 | -7/Scraptown | Met Optimus 11834 | -7/Scraptown | Accepted into 0bPrime 11919 | -7/Scraptown | Entered Factory 11919 | -5/Factory | Evolved 4 slots: Propulsion x3, Utility x1 12041 | -5/Factory | Loaded intel: 8 recycling unit locations 12116 | -5/Factory | Fabricated Powered Armor? 12156 | -5/Factory | Fabricated Med. Storage Unit (x1) 12169 | -5/Factory | Identified exit to Upper Caves 12169 | -5/Factory | Identified exit to Extension 12296 | -5/Factory | Discovered new exit (range 8) 12298 | -5/Factory | Identified exit to Factory 12364 | -5/Factory | Learned location of Protoforge (-2) 12426 | -5/Factory | Build established: Hacker-Scout 12597 | -5/Factory | Fabricated Gravity Neutralizer? 12873 | -5/Factory | Crushed by falling debris 12904 | -5/Factory | Lost 3 parts (1n2u) 12980 | -5/Factory | Manually triggered Chute Trap 12980 | -5/Factory | Sucked down chute 12980 | -5/Factory | Entered Waste 12986 | -5/Waste | Spotted C-40 Crusher 13085 | -5/Waste | Spotted C-40 Crusher 13086 | -5/Waste | Spotted C-40 Crusher 13088 | -5/Waste | Spotted C-40 Crusher 13091 | -5/Waste | Spotted C-40 Crusher 13098 | -5/Waste | Discovered new exit (range 14) 13101 | -5/Waste | Identified exit to Factory 13101 | -5/Waste | Entered Factory 13139 | -5/Factory | Discovered exit to Upper Caves (range 30) 13141 | -5/Factory | Repaired Surge Thruster+ 13212 | -5/Factory | Fabricated Lgt. Fission Core (x2) 13249 | -5/Factory | Repaired Surge Thruster+ 13388 | -5/Factory | Discovered exit to Extension (range 21) 13418 | -5/Factory | Fabricated Cld. VTOL Module (x1) 13624 | -5/Factory | Fabricated Cld. VTOL Module (x1) 13701 | -5/Factory | Entered Upper Caves 13721 | -5/Upper Caves | Spotted B-75 Beast 13858 | -5/Upper Caves | Learned Factory stockpile data 13935 | -5/Upper Caves | Discovered new exit (range 5) 13936 | -5/Upper Caves | Identified exit to Upper Caves 13943 | -5/Upper Caves | Learned 4 Factory zone layouts 13947 | -5/Upper Caves | Entered another Upper Caves area 13971 | -5/Upper Caves | Discovered exit to Factory (range 14) 14007 | -5/Upper Caves | Learned Factory stockpile data 14009 | -5/Upper Caves | Entered a destroyed Warlord outpost 14160 | -5/Upper Caves | Entered Factory 14160 | -4/Factory | Evolved 2 slots: Utility x2 14181 | -4/Factory | Loaded intel: 8 recycling unit locations 14411 | -4/Factory | Identified exit to Upper Caves 14411 | -4/Factory | Identified exit to Armory 14518 | -4/Factory | Discovered new exit (range 27) 14558 | -4/Factory | Central database locked down 14747 | -4/Factory | Discovered new exit (range 27) 14780 | -4/Factory | Sucked down chute 14780 | -4/Factory | Entered Waste 14795 | -4/Waste | 1 allies followed down the chute 14815 | -4/Waste | Spotted C-40 Crusher 14815 | -4/Waste | Spotted C-40 Crusher 14817 | -4/Waste | Spotted C-40 Crusher 14819 | -4/Waste | Spotted C-40 Crusher 14822 | -4/Waste | Warlord forces began an assault 14830 | -4/Waste | Allies destroyed C-40 Crusher 14841 | -4/Waste | Allies destroyed C-40 Crusher 14844 | -4/Waste | Allies destroyed C-40 Crusher 14844 | -4/Waste | Spotted C-40 Crusher 14849 | -4/Waste | Allies destroyed C-40 Crusher 14854 | -4/Waste | Spotted C-40 Crusher 14860 | -4/Waste | Discovered new exit (range 19) 14870 | -4/Waste | Allies destroyed C-40 Crusher 14889 | -4/Waste | Identified exit to Factory 14897 | -4/Waste | Lost 7 allies 14928 | -4/Waste | Entered Factory 14928 | -4/Factory | Accompanied by 13 allies 14994 | -4/Factory | Discovered new exit (range 13) 15033 | -4/Factory | Fabricated Cld. VTOL Module (x1) 15061 | -4/Factory | Repaired Powered Armor 15221 | -4/Factory | Identified exit to Research 15255 | -4/Factory | Spotted B-86 Titan 15406 | -4/Factory | Repaired Scythe+ 15437 | -4/Factory | Loaded intel: 8 recycling unit locations 15539 | -4/Factory | Entered Upper Caves 15660 | -4/Upper Caves | Discovered new exit (range 10) 15662 | -4/Upper Caves | Identified exit to Upper Caves 15662 | -4/Upper Caves | Entered another Upper Caves area 15714 | -4/Upper Caves | Discovered exit to Research (range 14) 15733 | -4/Upper Caves | Entered Research 15733 | -3/Research | Evolved 2 slots: Utility x2 15823 | -3/Research | Fabricated Mni. Smartbomb Launcher? 15826 | -3/Research | Discovered new exit (range 27) 15842 | -3/Research | Repaired Broken Adv. Cryofiber Web? 15930 | -3/Research | Repaired Cld. VTOL Module 16109 | -3/Research | Loaded intel: 5 recycling unit locations 16157 | -3/Research | Crushed by falling debris 16157 | -3/Research | System corruption reached 10% 16160 | -3/Research | Identified exit to Testing 16188 | -3/Research | Lost 4 parts (1n3u) 16248 | -3/Research | Spotted B-86 Titan 16328 | -3/Research | Fabricated Cld. VTOL Module? 16376 | -3/Research | Fabricated Cld. VTOL Module (x1) 16492 | -3/Research | Repaired Adv. Surge Thruster 16529 | -3/Research | Identified exit to Research 16683 | -3/Research | Found Prototype Device 16684 | -3/Research | Identified Adv. EM Shield 16748 | -3/Research | Found Prototype Device 16749 | -3/Research | Identified Exp. Thermal Shield 16752 | -3/Research | Unchained authorized (GL-D0S) 16772 | -3/Research | Build established: Wizard-Scout 16782 | -3/Research | Entered Testing 16871 | -3/Testing | Fabricated Cld. Field Propulsion Drive (x1) 16947 | -3/Testing | Self-destructed Last Messages --------------- 16929_ W-44 Eye sends out distress signal. 16931_ The unstable cave ceiling collapses. 16931_ Penetrated by Slug. 16931_ Mni. Smartbomb Launcher destroyed. 16931_ Slug penetrates Garrison Access. 16934_ The unstable cave ceiling collapses. 16934_ Penetrated by Slug. 16938_ Critical hit (Destroy). 16938_ U-05 Engineer builds a Wall. 16942_ U-05 Engineer lays Concrete. 16943_ U-05 Engineer suffers critical hit (Burn). 16943_ U-05 Engineer destroyed. 16943_ Penetrated by Slug. 16946_ Gravity Neutralizer destroyed. 16947_ Penetrated by Slug. 16947_ Adv. Surge Thruster destroyed. 16947_ Powered Armor destroyed. 16947_ R-10 Processor collects Terrain Scan Processor. Map ----- +----------------------------------------------------+ | ############?#?###?# ?####### #? """ ?#??? ? #???# | | ####################? #######?## ""? ?##? ????? | | ###?####?#######?#?# ###### # """ ## ? ?#??? | | ######?############# " + ? ## ??##?? | | ####################+####### #? #? ? ? ##??? | | ##########?#### ? ### ## ??#? ?#???? | | ##?############ ?### ######?#####??+?# | | ############### """"" #?# ?? ? ? ? | | ############### """"" #####?######??###?+????? | | ############### """""? ###?############# ? ? | | ############### #######??##?##### ? | | ############### ? ############?#### ? ?? | | ##########?###??#?#?############?#?##?#####? | | ########################################### ? | | #########################?################# ? | | ##################################?####?#?# ""? | | ############?##########?### ######?##?# ? " ? | | ########################### ###### ""?? | | # w w T g / ? | | # ############### A ###??# ? | | # ############### ##+#+###### ?? | | / ####### # ####k#### ######?### | | # ###+######## *ggg #?? "" ## ? | | # # !%!! |""" # """## ? ? ? | | # #""! u* R## # """" # F"## ? | | #"" = ! @h """ # """## "? ? | | #G ! [[! # """ # ""?## """ | | #"" [[! # ## "" | | #"" [[! = # ##### ##? ?? ? | | # # ### # ###########?##########?# | | # ############################# ? ? | | # # """T""" ###############?### ?? | | # # ^^ ^ ######?##########"" """ """ """ | | # # ^ #################"" """ """ ""? | | # # ^ #################"T ? """?"""???? | | + + ^ = ##########?######"" ?? | | # # """"""" #####?###########"" """ "?" "?" | | # # """"""" ################### ? "?" """ "?? | | # # """"""" #######?########### "?" ?""?""" | | # ####################?######## ? ? ? | | # # ##?################# ? ?? | | # # ]]] ##################?#######""?""#?##? | | # + ]] ##########################""R"?##? ? | | # # ]] ! ########################?# ""?"##??? | | # # #?############################?##?"? | | # # """ ######?#######################?#??"" | | ###### """ ############?###########??####??# ?? | | ###### """ ######################?#####?#?????? | | ###### ##?#####?###?#?####?##?##??##??##??? | | ?###########################?##########??#????? ? | +----------------------------------------------------+ Best States ------------- Heat Dissipation 46 Energy Generation 37 Energy Capacity 300 Matter Stores 300 Matter Capacity 300 Sight Range 20 Robot Scan Range 18 Terrain Scan Range 30 Terrain Scan Density 210 Additional Mass Support 12 Base Temperature (-) 200 Armor Coverage 525 Resistance: TH 30 Evasion (%) 75 Targeting Accuracy 20 Kinecelleration 30 Offensive Hacking 44 Defensive Hacking 44 Authchip Count 6 Item Schematics ----------------- Powered Armor | -7/Recycling | Hacked Gravity Neutralizer | -5/Factory | Hacked Cld. VTOL Module | -5/Factory | Hacked Med. Storage Unit | -5/Factory | Hacked Lgt. Fission Core | -5/Factory | Hacked Adv. Reaction Control System | -4/Factory | Hacked Mni. Smartbomb Launcher | -4/Factory | Hacked Adv. Cryofiber Web | -3/Research | Scanalyzed Cld. Field Propulsion Drive | -3/Research | Hacked Exp. Signal Interpreter | -3/Research | Hacked Robot Schematics ------------------ None Fabricated ------------ Powered Armor | x2 | -5/Factory | Authchip Med. Storage Unit | x1 | -5/Factory Gravity Neutralizer | x1 | -5/Factory | Authchip Lgt. Fission Core | x2 | -5/Factory | Authchip Cld. VTOL Module | x1 | -5/Factory | Authchip Cld. VTOL Module | x1 | -5/Factory | Authchip Cld. VTOL Module | x1 | -4/Factory | Authchip Mni. Smartbomb Launcher | x1 | -3/Research | Authchip Cld. VTOL Module | x1 | -3/Research | Authchip Cld. VTOL Module | x1 | -3/Research | Authchip Cld. Field Propulsion Drive | x1 | -3/Testing | Authchip Repaired ---------- Flak Gun | 41% | -8/Materials Surge Thruster | 7% | -5/Factory Surge Thruster | 24% | -5/Factory Powered Armor | 66% | -4/Factory Scythe | 50% | -4/Factory Adv. Cryofiber Web | 99% | -3/Research | Broken Cld. VTOL Module | 13% | -3/Research Adv. Surge Thruster | 24% | -3/Research Studied --------- VTOL Module | -9/Materials | Hacked Wheel | -8/Materials | Hacked Flak Gun | -8/Materials | Hacked Surge Thruster | -7/Factory | Hacked Lgt. Fission Core | -5/Factory | Hacked Imp. Fusion Compressor | -4/Factory | Hacked Scythe | -4/Factory | Hacked Alien Tech Used ----------------- None Achievements -------------- None Challenges ------------ None Game ------ Seed PhaseRagnarokRecalibrator Manual? 0 Play Time 07:38:00 Cumulative 110.5 hours Start 2026.01.10 @ 15:14:37 End 2026.01.11 @ 05:31:13 Sessions 4 Manual Loads 0 Difficulty Rogue Special Mode None Game No. 35 Rogue 35 Adventurer 0 Explorer 0 Win Type - Total 4 Types 3/0/1/0/0/0/0/0/0/0 Lore% 30 Gallery% 33 Achievement% 34 Wizard Run 0 Options --------- Layout 1 ASCII 0 Keyboard 0 Movement Mouse Keybinds 0 Fullscreen 1 Font 24/Smallcaps Map View 50x35 Zoom Use 0% Tactical HUD 1 Map Filters NONE Filters NONE Steam 1 RUN: a4291547-5188-48a0-88f2-916e5392052f